[Event "Late-Titled-Tuesday-Blitz-January-30-2024"]
[Site "Chess.com"]
[Date "2024.01.30"]
[Round "4"]
[White "melissa_guez"]
[Black "PattyCastillo"]
[Result "1-0"]
[WhiteElo "2249"]
[BlackElo "1986"]
[TimeControl "180+1"]
[EndTime "14:39:44 PST"]
[Termination "melissa_guez won by resignation"]

1. e4 {[%clk 0:03:00.9]} 1... c5 {[%clk 0:02:59.1]} 2. Nf3 {[%clk 0:03:00.5]}
2... d6 {[%clk 0:02:59.4]} 3. d4 {[%clk 0:03:00.6]} 3... cxd4 {[%clk 0:03:00.3]}
4. Nxd4 {[%clk 0:03:01.1]} 4... Nf6 {[%clk 0:03:00]} 5. Nc3 {[%clk 0:03:01.6]}
5... a6 {[%clk 0:03:00.1]} 6. Bc4 {[%clk 0:03:01.8]} 6... e6 {[%clk 0:03:00.1]}
7. Bb3 {[%clk 0:03:02.4]} 7... Nbd7 {[%clk 0:03:00.1]} 8. f4 {[%clk 0:03:01]}
8... Nc5 {[%clk 0:03:00.1]} 9. Qf3 {[%clk 0:02:36.1]} 9... Be7 {[%clk
0:02:53.6]} 10. f5 {[%clk 0:02:33.2]} 10... e5 {[%clk 0:02:34.6]} 11. Nde2
{[%clk 0:02:32.2]} 11... Nxb3 {[%clk 0:02:32.3]} 12. axb3 {[%clk 0:02:31.8]}
12... b5 {[%clk 0:02:31.3]} 13. Nxb5 {[%clk 0:02:26.5]} 13... Bb7 {[%clk
0:02:28.6]} 14. Nbc3 {[%clk 0:02:25.4]} 14... d5 {[%clk 0:02:21.8]} 15. exd5
{[%clk 0:02:11.5]} 15... Nxd5 {[%clk 0:02:21.3]} 16. Nxd5 {[%clk 0:01:57.2]}
16... Bxd5 {[%clk 0:02:20.2]} 17. Qf2 {[%clk 0:01:38.1]} 17... Bh4 {[%clk
0:02:14.4]} 18. Ng3 {[%clk 0:01:35.6]} 18... O-O {[%clk 0:02:08.6]} 19. O-O
{[%clk 0:01:34.5]} 19... Qc8 {[%clk 0:01:50.5]} 20. f6 {[%clk 0:01:10.5]} 20...
Qg4 {[%clk 0:01:26.1]} 21. fxg7 {[%clk 0:01:06.3]} 21... Rfc8 {[%clk 0:01:25.8]}
22. c4 {[%clk 0:00:57.5]} 22... Be6 {[%clk 0:01:22.2]} 23. Qf3 {[%clk
0:00:45.6]} 23... Bxg3 {[%clk 0:01:03.1]} 24. Qxg4 {[%clk 0:00:33.9]} 24...
Bxh2+ {[%clk 0:01:02.3]} 25. Kxh2 {[%clk 0:00:33.2]} 25... Bxg4 {[%clk
0:01:02.8]} 26. Bh6 {[%clk 0:00:32.8]} 26... Rc6 {[%clk 0:01:02]} 27. Bg5 {[%clk
0:00:29.9]} 27... Rg6 {[%clk 0:01:00.4]} 28. Bh4 {[%clk 0:00:28]} 28... Rxg7
{[%clk 0:00:58.1]} 29. Bf6 {[%clk 0:00:27.1]} 29... Rg6 {[%clk 0:00:55.1]} 30.
Bxe5 {[%clk 0:00:27.2]} 30... Re8 {[%clk 0:00:52.7]} 31. Rae1 {[%clk 0:00:22.6]}
31... Be6 {[%clk 0:00:46.6]} 32. Bc3 {[%clk 0:00:18.2]} 32... Rd8 {[%clk
0:00:44.3]} 33. Rd1 {[%clk 0:00:18]} 33... Rc8 {[%clk 0:00:41.7]} 34. Rd6 {[%clk
0:00:17.3]} 34... h5 {[%clk 0:00:39.3]} 35. Rfd1 {[%clk 0:00:17.3]} 35... Kh7
{[%clk 0:00:37]} 36. Rd8 {[%clk 0:00:17.1]} 36... Rxd8 {[%clk 0:00:29.7]} 37.
Rxd8 {[%clk 0:00:18]} 37... Rg4 {[%clk 0:00:19.5]} 38. Rh8+ {[%clk 0:00:17.4]}
38... Kg6 {[%clk 0:00:19.9]} 39. Rg8+ {[%clk 0:00:17.6]} 39... Kf5 {[%clk
0:00:20.2]} 40. Ra8 {[%clk 0:00:17.3]} 40... Rh4+ {[%clk 0:00:17.5]} 41. Kg1
{[%clk 0:00:16.9]} 41... Re4 {[%clk 0:00:17.2]} 42. Rxa6 {[%clk 0:00:16.9]}
42... Re2 {[%clk 0:00:16.4]} 43. Kf1 {[%clk 0:00:16.3]} 43... Rc2 {[%clk
0:00:14.5]} 44. Ra5+ {[%clk 0:00:15.7]} 44... Kg6 {[%clk 0:00:14.1]} 45. Re5
{[%clk 0:00:15.2]} 45... Rc1+ {[%clk 0:00:13.3]} 46. Re1 {[%clk 0:00:14.2]}
46... Rc2 {[%clk 0:00:13.1]} 47. Re2 {[%clk 0:00:14.4]} 47... Rc1+ {[%clk
0:00:13]} 48. Kf2 {[%clk 0:00:14.7]} 48... Bg4 {[%clk 0:00:12.9]} 49. Rd2 {[%clk
0:00:14.9]} 49... Rh1 {[%clk 0:00:11.3]} 50. b4 {[%clk 0:00:14.2]} 50... Rc1
{[%clk 0:00:09.4]} 51. b5 {[%clk 0:00:13.1]} 51... h4 {[%clk 0:00:08.9]} 52. b6
{[%clk 0:00:12.3]} 52... h3 {[%clk 0:00:08.8]} 53. gxh3 {[%clk 0:00:11.9]} 53...
Bc8 {[%clk 0:00:08.2]} 54. c5 {[%clk 0:00:11.5]} 54... Bb7 {[%clk 0:00:08]} 55.
Rd7 {[%clk 0:00:11.3]} 55... Bc6 {[%clk 0:00:05.6]} 56. Rd6+ {[%clk 0:00:11.5]}
1-0

[Event "Late-Titled-Tuesday-Blitz-January-30-2024"]
[Site "Chess.com"]
[Date "2024.01.30"]
[Round "4"]
[White "JCVanDamme10"]
[Black "PawnEatingZombie"]
[Result "0-1"]
[WhiteElo "2305"]
[BlackElo "2155"]
[TimeControl "180+1"]
[EndTime "14:39:46 PST"]
[Termination "PawnEatingZombie won on time"]

1. e4 {[%clk 0:02:56.2]} 1... e6 {[%clk 0:03:00]} 2. d4 {[%clk 0:02:55.7]} 2...
d5 {[%clk 0:03:00.3]} 3. e5 {[%clk 0:02:56.4]} 3... c5 {[%clk 0:02:59.7]} 4. c3
{[%clk 0:02:57.1]} 4... Nc6 {[%clk 0:03:00.3]} 5. Nf3 {[%clk 0:02:57.5]} 5...
Nge7 {[%clk 0:03:00.7]} 6. Bd3 {[%clk 0:02:52.2]} 6... cxd4 {[%clk 0:02:59.8]}
7. cxd4 {[%clk 0:02:51.9]} 7... Nf5 {[%clk 0:03:00.4]} 8. Bxf5 {[%clk
0:02:46.3]} 8... exf5 {[%clk 0:03:00]} 9. O-O {[%clk 0:02:47]} 9... Be7 {[%clk
0:02:57.9]} 10. Nc3 {[%clk 0:02:47.4]} 10... Be6 {[%clk 0:02:56.7]} 11. Re1
{[%clk 0:02:39.1]} 11... Qd7 {[%clk 0:02:55.8]} 12. Ng5 {[%clk 0:02:34.3]} 12...
h6 {[%clk 0:02:54.7]} 13. Nxe6 {[%clk 0:02:33.5]} 13... fxe6 {[%clk 0:02:55.1]}
14. Qh5+ {[%clk 0:02:30.7]} 14... Kf8 {[%clk 0:02:46.3]} 15. Be3 {[%clk
0:02:29.7]} 15... a6 {[%clk 0:02:43.2]} 16. Rac1 {[%clk 0:02:27.7]} 16... Qe8
{[%clk 0:02:35]} 17. Qf3 {[%clk 0:02:21.8]} 17... Kg8 {[%clk 0:02:29.4]} 18. Na4
{[%clk 0:01:49.1]} 18... Kh7 {[%clk 0:02:21.8]} 19. Nb6 {[%clk 0:01:48.4]} 19...
Rd8 {[%clk 0:02:17.2]} 20. Qe2 {[%clk 0:01:35]} 20... Rf8 {[%clk 0:02:15.2]} 21.
Qd3 {[%clk 0:01:35]} 21... Qg6 {[%clk 0:02:14.3]} 22. f4 {[%clk 0:01:30.1]}
22... Qh5 {[%clk 0:01:55.3]} 23. Rf1 {[%clk 0:01:25.6]} 23... g5 {[%clk
0:01:50.5]} 24. fxg5 {[%clk 0:01:22.1]} 24... hxg5 {[%clk 0:01:49.1]} 25. Rf3
{[%clk 0:01:14.3]} 25... g4 {[%clk 0:01:49.2]} 26. Rff1 {[%clk 0:01:09.4]} 26...
Rh8 {[%clk 0:01:44]} 27. Bf4 {[%clk 0:01:07.6]} 27... Kg6 {[%clk 0:01:38.7]} 28.
Rc3 {[%clk 0:01:03.3]} 28... Bg5 {[%clk 0:01:33.7]} 29. h3 {[%clk 0:00:37]}
29... gxh3 {[%clk 0:01:18.8]} 30. Qxh3 {[%clk 0:00:36.7]} 30... Qxh3 {[%clk
0:01:09.5]} 31. Rxh3 {[%clk 0:00:35.6]} 31... Rxh3 {[%clk 0:01:09.1]} 32. gxh3
{[%clk 0:00:35.9]} 32... Nxd4 {[%clk 0:01:07.3]} 33. Bxg5 {[%clk 0:00:35.2]}
33... Kxg5 {[%clk 0:01:06]} 34. Kf2 {[%clk 0:00:32.5]} 34... Nc6 {[%clk
0:01:01.9]} 35. Rg1+ {[%clk 0:00:28.7]} 35... Kh6 {[%clk 0:01:00.2]} 36. Re1
{[%clk 0:00:24.9]} 36... Kg6 {[%clk 0:00:52.8]} 37. Kf3 {[%clk 0:00:22.4]} 37...
Kf7 {[%clk 0:00:50.7]} 38. Kf4 {[%clk 0:00:22]} 38... Rh8 {[%clk 0:00:51]} 39.
Nd7 {[%clk 0:00:18.9]} 39... Rxh3 {[%clk 0:00:46.4]} 40. Nc5 {[%clk 0:00:18.9]}
40... Rh4+ {[%clk 0:00:42.6]} 41. Kg3 {[%clk 0:00:17.5]} 41... Rb4 {[%clk
0:00:39.8]} 42. b3 {[%clk 0:00:17.9]} 42... a5 {[%clk 0:00:35.5]} 43. Rh1 {[%clk
0:00:16.6]} 43... Nxe5 {[%clk 0:00:27.4]} 44. Rh7+ {[%clk 0:00:16.4]} 44... Kf6
{[%clk 0:00:27.8]} 45. Rh6+ {[%clk 0:00:12.9]} 45... Ng6 {[%clk 0:00:27.6]} 46.
Nxe6 {[%clk 0:00:13.3]} 46... Kxe6 {[%clk 0:00:26.9]} 47. Rxg6+ {[%clk
0:00:12.8]} 47... Ke5 {[%clk 0:00:27]} 48. Rh6 {[%clk 0:00:08.8]} 48... Rg4+
{[%clk 0:00:25.7]} 49. Kf3 {[%clk 0:00:08.8]} 49... Rf4+ {[%clk 0:00:19.7]} 50.
Ke3 {[%clk 0:00:08.1]} 50... d4+ {[%clk 0:00:19.5]} 51. Ke2 {[%clk 0:00:08]}
51... Rg4 {[%clk 0:00:17]} 52. Kf3 {[%clk 0:00:04.5]} 52... d3 {[%clk
0:00:15.5]} 53. Rb6 {[%clk 0:00:04.6]} 53... Rd4 {[%clk 0:00:15.2]} 54. Rb5+
{[%clk 0:00:01.8]} 54... Rd5 {[%clk 0:00:14.2]} 55. Rxd5+ {[%clk 0:00:01.8]}
55... Kxd5 {[%clk 0:00:14.4]} 56. Ke3 {[%clk 0:00:02.7]} 56... f4+ {[%clk
0:00:13.2]} 57. Kxd3 {[%clk 0:00:03.3]} 57... b5 {[%clk 0:00:11.6]} 58. a3
{[%clk 0:00:01.1]} 58... b4 {[%clk 0:00:11.7]} 0-1

[Event "Late-Titled-Tuesday-Blitz-January-30-2024"]
[Site "Chess.com"]
[Date "2024.01.30"]
[Round "4"]
[White "shirovin"]
[Black "BestestBP"]
[Result "0-1"]
[WhiteElo "2043"]
[BlackElo "2262"]
[TimeControl "180+1"]
[EndTime "14:39:48 PST"]
[Termination "BestestBP won on time"]

1. e4 {[%clk 0:03:00.9]} 1... e5 {[%clk 0:02:57.1]} 2. Nf3 {[%clk 0:03:00.1]}
2... Nc6 {[%clk 0:02:57.8]} 3. Bc4 {[%clk 0:02:59.5]} 3... Nf6 {[%clk
0:02:57.7]} 4. Ng5 {[%clk 0:02:56.9]} 4... d5 {[%clk 0:02:57.7]} 5. exd5 {[%clk
0:02:56.4]} 5... Na5 {[%clk 0:02:58.4]} 6. Bb5+ {[%clk 0:02:56.1]} 6... c6
{[%clk 0:02:59.1]} 7. dxc6 {[%clk 0:02:55.9]} 7... bxc6 {[%clk 0:03:00]} 8. Bd3
{[%clk 0:02:55.7]} 8... h6 {[%clk 0:02:59.7]} 9. Ne4 {[%clk 0:02:55]} 9... Nd5
{[%clk 0:03:00.3]} 10. O-O {[%clk 0:02:42.5]} 10... Nf4 {[%clk 0:03:00.2]} 11.
Nbc3 {[%clk 0:02:24.1]} 11... Nxd3 {[%clk 0:02:59]} 12. cxd3 {[%clk 0:02:23.3]}
12... Be7 {[%clk 0:02:59.7]} 13. b3 {[%clk 0:02:12.3]} 13... O-O {[%clk
0:02:58.9]} 14. Bb2 {[%clk 0:02:11]} 14... Qxd3 {[%clk 0:02:59.5]} 15. Qe2
{[%clk 0:02:04.8]} 15... Rd8 {[%clk 0:02:40.6]} 16. Qxd3 {[%clk 0:01:57]} 16...
Rxd3 {[%clk 0:02:41.5]} 17. Rfe1 {[%clk 0:01:49.5]} 17... f6 {[%clk 0:02:32.5]}
18. Re3 {[%clk 0:01:47.9]} 18... Rd8 {[%clk 0:02:26]} 19. Na4 {[%clk 0:01:41.2]}
19... Bf5 {[%clk 0:02:17.7]} 20. Bc3 {[%clk 0:01:39.8]} 20... Nb7 {[%clk
0:02:11]} 21. Ng3 {[%clk 0:01:33.5]} 21... Bg6 {[%clk 0:02:07.5]} 22. f4 {[%clk
0:01:31.6]} 22... Nc5 {[%clk 0:01:51.4]} 23. fxe5 {[%clk 0:01:29.4]} 23... Nxa4
{[%clk 0:01:49.7]} 24. bxa4 {[%clk 0:01:19.2]} 24... Bc5 {[%clk 0:01:44.5]} 25.
d4 {[%clk 0:01:18.4]} 25... Rxd4 {[%clk 0:01:33.3]} 26. Bxd4 {[%clk 0:01:14.5]}
26... Bxd4 {[%clk 0:01:32.1]} 27. Re1 {[%clk 0:01:15.1]} 27... fxe5 {[%clk
0:01:29.9]} 28. Kf1 {[%clk 0:01:13.9]} 28... Bxe3 {[%clk 0:01:15.4]} 29. Rxe3
{[%clk 0:01:13.1]} 29... Rf8+ {[%clk 0:01:11.7]} 30. Ke1 {[%clk 0:01:11.2]}
30... Rf4 {[%clk 0:01:12]} 31. Rc3 {[%clk 0:01:08.2]} 31... Rxa4 {[%clk
0:01:05.6]} 32. Rxc6 {[%clk 0:01:06.9]} 32... Kh7 {[%clk 0:01:04.2]} 33. Re6
{[%clk 0:01:00.1]} 33... Rxa2 {[%clk 0:00:45.2]} 34. Rxe5 {[%clk 0:00:59]} 34...
Rxg2 {[%clk 0:00:45.1]} 35. Re2 {[%clk 0:00:54]} 35... Rxe2+ {[%clk 0:00:37.5]}
36. Nxe2 {[%clk 0:00:53.6]} 36... a5 {[%clk 0:00:36.8]} 37. Nd4 {[%clk
0:00:53.7]} 37... a4 {[%clk 0:00:36]} 38. Kd2 {[%clk 0:00:54.2]} 38... a3 {[%clk
0:00:33.5]} 39. Kc3 {[%clk 0:00:53.8]} 39... a2 {[%clk 0:00:32.2]} 40. Kb2
{[%clk 0:00:53.3]} 40... Bf7 {[%clk 0:00:24.9]} 41. Nc2 {[%clk 0:00:50.3]} 41...
Kg6 {[%clk 0:00:24.5]} 42. Nb4 {[%clk 0:00:49.3]} 42... Kg5 {[%clk 0:00:21.2]}
43. Nc6 {[%clk 0:00:39.9]} 43... Kh4 {[%clk 0:00:19.4]} 44. Ne5 {[%clk
0:00:37.8]} 44... Bd5 {[%clk 0:00:18]} 45. Ng6+ {[%clk 0:00:35.4]} 45... Kg5
{[%clk 0:00:17.6]} 46. Ne7 {[%clk 0:00:34.5]} 46... Bf7 {[%clk 0:00:17.8]} 47.
Nc6 {[%clk 0:00:33.6]} 47... Kh4 {[%clk 0:00:18]} 48. Ne5 {[%clk 0:00:32.6]}
48... Be6 {[%clk 0:00:17.3]} 49. Ng6+ {[%clk 0:00:32.4]} 49... Kg5 {[%clk
0:00:16.1]} 50. Ne5 {[%clk 0:00:29.7]} 50... h5 {[%clk 0:00:16.1]} 51. Nf3+
{[%clk 0:00:27.6]} 51... Kf4 {[%clk 0:00:16]} 52. Nh4 {[%clk 0:00:27.4]} 52...
g5 {[%clk 0:00:16]} 53. Ng6+ {[%clk 0:00:27.1]} 53... Ke3 {[%clk 0:00:16.2]} 54.
Nf8 {[%clk 0:00:24.4]} 54... Bf7 {[%clk 0:00:14.8]} 55. Nd7 {[%clk 0:00:23.7]}
55... Kf2 {[%clk 0:00:13.7]} 56. Nf6 {[%clk 0:00:20.1]} 56... Kg2 {[%clk
0:00:10.5]} 57. Nh7 {[%clk 0:00:19.8]} 57... g4 {[%clk 0:00:09.5]} 58. Ng5
{[%clk 0:00:19.2]} 58... Bd5 {[%clk 0:00:09.1]} 59. Nh7 {[%clk 0:00:15.7]} 59...
Kxh2 {[%clk 0:00:08.7]} 60. Nf6 {[%clk 0:00:16.3]} 60... Bf7 {[%clk 0:00:08.4]}
61. Ne4 {[%clk 0:00:16]} 61... g3 {[%clk 0:00:08.7]} 62. Ka1 {[%clk 0:00:10.5]}
62... g2 {[%clk 0:00:08]} 63. Ng5 {[%clk 0:00:04.8]} 63... g1=Q+ {[%clk
0:00:08.4]} 0-1

[Event "Late-Titled-Tuesday-Blitz-January-30-2024"]
[Site "Chess.com"]
[Date "2024.01.30"]
[Round "4"]
[White "JakubPulpan"]
[Black "lupta_robin"]
[Result "1/2-1/2"]
[WhiteElo "2702"]
[BlackElo "2524"]
[TimeControl "180+1"]
[EndTime "14:39:53 PST"]
[Termination "Game drawn by repetition"]

1. a3 {[%clk 0:02:58.5]} 1... e5 {[%clk 0:02:57.7]} 2. g3 {[%clk 0:02:34.7]}
2... d5 {[%clk 0:02:56.5]} 3. Bg2 {[%clk 0:02:34.2]} 3... Nf6 {[%clk 0:02:57.1]}
4. b4 {[%clk 0:02:07.8]} 4... Bd6 {[%clk 0:02:47.6]} 5. Bb2 {[%clk 0:02:03.5]}
5... O-O {[%clk 0:02:45.7]} 6. d3 {[%clk 0:01:57.9]} 6... Re8 {[%clk 0:02:42]}
7. c4 {[%clk 0:01:42.6]} 7... c6 {[%clk 0:02:33]} 8. cxd5 {[%clk 0:01:40.1]}
8... cxd5 {[%clk 0:02:33]} 9. Nc3 {[%clk 0:01:40.3]} 9... d4 {[%clk 0:02:32.5]}
10. Nb1 {[%clk 0:01:14.5]} 10... a5 {[%clk 0:02:29.4]} 11. bxa5 {[%clk
0:01:06.3]} 11... Qxa5+ {[%clk 0:02:12]} 12. Nd2 {[%clk 0:01:05.3]} 12... e4
{[%clk 0:02:10.4]} 13. dxe4 {[%clk 0:01:04.5]} 13... Nxe4 {[%clk 0:02:09.7]} 14.
Nf3 {[%clk 0:00:54.9]} 14... d3 {[%clk 0:02:03.9]} 15. e3 {[%clk 0:00:41.7]}
15... Bg4 {[%clk 0:01:53.6]} 16. O-O {[%clk 0:00:33.3]} 16... Nxd2 {[%clk
0:01:38.5]} 17. Qxd2 {[%clk 0:00:32.8]} 17... Qxd2 {[%clk 0:01:33.3]} 18. Nxd2
{[%clk 0:00:33.7]} 18... Nc6 {[%clk 0:01:32.5]} 19. Rfc1 {[%clk 0:00:30.4]}
19... Na5 {[%clk 0:01:24.6]} 20. Bf1 {[%clk 0:00:29.6]} 20... Bf5 {[%clk
0:01:14.1]} 21. e4 {[%clk 0:00:29.9]} 21... Bxe4 {[%clk 0:01:10.9]} 22. Nxe4
{[%clk 0:00:29.6]} 22... Rxe4 {[%clk 0:01:10.4]} 23. Bxd3 {[%clk 0:00:30.3]}
23... Re7 {[%clk 0:01:10.2]} 24. Rd1 {[%clk 0:00:27.5]} 24... Bc5 {[%clk
0:01:05.1]} 25. a4 {[%clk 0:00:21.5]} 25... b6 {[%clk 0:01:01.4]} 26. Ba3 {[%clk
0:00:20.8]} 26... Nb3 {[%clk 0:00:52.5]} 27. Bxc5 {[%clk 0:00:04.7]} 27... Nxc5
{[%clk 0:00:52]} 28. Bb5 {[%clk 0:00:04.5]} 28... g6 {[%clk 0:00:43.8]} 29. Rd5
{[%clk 0:00:03.9]} 29... Rea7 {[%clk 0:00:43.2]} 30. Rb1 {[%clk 0:00:03]} 30...
Nxa4 {[%clk 0:00:40.1]} 31. Bc6 {[%clk 0:00:02.3]} 31... Rc8 {[%clk 0:00:37.6]}
32. Bxa4 {[%clk 0:00:02.4]} 32... Rxa4 {[%clk 0:00:38]} 33. Rxb6 {[%clk
0:00:01.8]} 33... Ra7 {[%clk 0:00:38.2]} 34. Rd1 {[%clk 0:00:01.7]} 34... Re7
{[%clk 0:00:38.2]} 35. Rbb1 {[%clk 0:00:02.6]} 35... Kg7 {[%clk 0:00:38.5]} 36.
Rf1 {[%clk 0:00:03.5]} 36... h5 {[%clk 0:00:37.3]} 37. h4 {[%clk 0:00:04.4]}
37... Rc2 {[%clk 0:00:37.1]} 38. Kg2 {[%clk 0:00:04.9]} 38... Ree2 {[%clk
0:00:37.3]} 39. Rb3 {[%clk 0:00:05.6]} 39... f6 {[%clk 0:00:36.2]} 40. Rb7+
{[%clk 0:00:05.6]} 40... Kh6 {[%clk 0:00:36.3]} 41. Rb6 {[%clk 0:00:05.9]} 41...
Kg7 {[%clk 0:00:34.7]} 42. Kg1 {[%clk 0:00:05.1]} 42... g5 {[%clk 0:00:32.9]}
43. hxg5 {[%clk 0:00:05.1]} 43... fxg5 {[%clk 0:00:33.3]} 44. Rb5 {[%clk
0:00:05.1]} 44... Kg6 {[%clk 0:00:33]} 45. Rb6+ {[%clk 0:00:05.6]} 45... Kf5
{[%clk 0:00:32.5]} 46. Kg2 {[%clk 0:00:06.3]} 46... Kg4 {[%clk 0:00:21.1]} 47.
Rb4+ {[%clk 0:00:06.2]} 47... Kf5 {[%clk 0:00:21.1]} 48. Rb3 {[%clk 0:00:06.8]}
48... Kg4 {[%clk 0:00:19.2]} 49. Rb8 {[%clk 0:00:05.1]} 49... Rb2 {[%clk
0:00:17.6]} 50. Rf8 {[%clk 0:00:05.1]} 50... h4 {[%clk 0:00:16.8]} 51. gxh4
{[%clk 0:00:05]} 51... gxh4 {[%clk 0:00:17.2]} 52. Rg8+ {[%clk 0:00:05.5]} 52...
Kh5 {[%clk 0:00:16.6]} 53. Rf8 {[%clk 0:00:05.7]} 53... Kg4 {[%clk 0:00:16.5]}
54. Rg8+ {[%clk 0:00:04.7]} 54... Kh5 {[%clk 0:00:16.8]} 55. Rg7 {[%clk
0:00:05]} 55... Ra2 {[%clk 0:00:15.5]} 56. Rh7+ {[%clk 0:00:05.2]} 56... Kg4
{[%clk 0:00:15.4]} 57. Rg7+ {[%clk 0:00:05.8]} 57... Kh5 {[%clk 0:00:15.9]} 58.
Kg1 {[%clk 0:00:06.2]} 58... Red2 {[%clk 0:00:15.3]} 59. Rg2 {[%clk 0:00:05.9]}
59... Rd4 {[%clk 0:00:13.2]} 60. Rb1 {[%clk 0:00:05.1]} 60... Ra5 {[%clk
0:00:13.2]} 61. Rb8 {[%clk 0:00:05.2]} 61... Rd6 {[%clk 0:00:13]} 62. Rh8+
{[%clk 0:00:05.3]} 62... Rh6 {[%clk 0:00:13.4]} 63. Rhg8 {[%clk 0:00:05.8]}
63... Rf5 {[%clk 0:00:13.6]} 64. Kh2 {[%clk 0:00:05.7]} 64... Rhf6 {[%clk
0:00:14.1]} 65. Rh8+ {[%clk 0:00:05.9]} 65... Rh6 {[%clk 0:00:14.6]} 66. Rhg8
{[%clk 0:00:05.9]} 66... Rhf6 {[%clk 0:00:15]} 67. Kg1 {[%clk 0:00:04.7]} 67...
Rh6 {[%clk 0:00:14.9]} 68. Kf1 {[%clk 0:00:04.6]} 68... Rhf6 {[%clk 0:00:15.4]}
69. Kg1 {[%clk 0:00:03.9]} 69... Rh6 {[%clk 0:00:15.9]} 1/2-1/2

[Event "Late-Titled-Tuesday-Blitz-January-30-2024"]
[Site "Chess.com"]
[Date "2024.01.30"]
[Round "4"]
[White "annasargsyan_m"]
[Black "rquery98"]
[Result "0-1"]
[WhiteElo "2535"]
[BlackElo "2726"]
[TimeControl "180+1"]
[EndTime "14:39:54 PST"]
[Termination "rquery98 won on time"]

1. d4 {[%clk 0:02:56.4]} 1... d5 {[%clk 0:02:58.7]} 2. c4 {[%clk 0:02:56.9]}
2... e6 {[%clk 0:02:59.1]} 3. Nf3 {[%clk 0:02:57.2]} 3... Nf6 {[%clk 0:02:59.4]}
4. Nc3 {[%clk 0:02:57.8]} 4... a6 {[%clk 0:02:58.7]} 5. cxd5 {[%clk 0:02:55.9]}
5... exd5 {[%clk 0:02:59.6]} 6. Qb3 {[%clk 0:02:56]} 6... b5 {[%clk 0:02:12.7]}
7. Bg5 {[%clk 0:02:52.6]} 7... Be6 {[%clk 0:02:12.2]} 8. e3 {[%clk 0:02:49.5]}
8... Nbd7 {[%clk 0:02:07.8]} 9. Bd3 {[%clk 0:02:49]} 9... Bd6 {[%clk 0:02:05.9]}
10. O-O {[%clk 0:02:45.9]} 10... c5 {[%clk 0:02:02.5]} 11. dxc5 {[%clk
0:02:35.1]} 11... Nxc5 {[%clk 0:02:03.4]} 12. Qc2 {[%clk 0:02:34.9]} 12... h6
{[%clk 0:01:57.5]} 13. Bh4 {[%clk 0:02:32.4]} 13... Rc8 {[%clk 0:01:51.3]} 14.
Qe2 {[%clk 0:02:30.7]} 14... b4 {[%clk 0:01:44]} 15. Nb1 {[%clk 0:02:22.1]}
15... O-O {[%clk 0:01:43.8]} 16. Nbd2 {[%clk 0:02:16]} 16... a5 {[%clk 0:01:43]}
17. Nd4 {[%clk 0:02:08.3]} 17... Bg4 {[%clk 0:01:36.4]} 18. f3 {[%clk
0:01:54.3]} 18... Bd7 {[%clk 0:01:35.8]} 19. Bb5 {[%clk 0:01:50.1]} 19... a4
{[%clk 0:01:35.4]} 20. Rfd1 {[%clk 0:01:43.3]} 20... Re8 {[%clk 0:01:31]} 21.
Bxd7 {[%clk 0:01:37.9]} 21... Ncxd7 {[%clk 0:01:31.9]} 22. Nf1 {[%clk
0:01:35.8]} 22... Qb6 {[%clk 0:01:23.5]} 23. Qb5 {[%clk 0:01:25]} 23... Qxb5
{[%clk 0:01:17.3]} 24. Nxb5 {[%clk 0:01:25.9]} 24... Bc5 {[%clk 0:01:18]} 25.
Bf2 {[%clk 0:01:22.1]} 25... Ne5 {[%clk 0:01:09.4]} 26. Rac1 {[%clk 0:01:13.3]}
26... Nc4 {[%clk 0:01:04.7]} 27. b3 {[%clk 0:01:03.8]} 27... axb3 {[%clk
0:01:01.8]} 28. axb3 {[%clk 0:01:04.7]} 28... Na3 {[%clk 0:00:56.5]} 29. Nd4
{[%clk 0:00:47.7]} 29... Bxd4 {[%clk 0:00:56.2]} 30. Rxc8 {[%clk 0:00:46]} 30...
Rxc8 {[%clk 0:00:54.7]} 31. Rxd4 {[%clk 0:00:46.4]} 31... Nc2 {[%clk 0:00:45.9]}
32. Rd3 {[%clk 0:00:42.6]} 32... Rc3 {[%clk 0:00:44.8]} 33. Rd2 {[%clk
0:00:21.8]} 33... Na1 {[%clk 0:00:33.9]} 34. Ra2 {[%clk 0:00:21.5]} 34... Nxb3
{[%clk 0:00:27.1]} 35. Be1 {[%clk 0:00:20.6]} 35... Rc4 {[%clk 0:00:26.8]} 36.
Rb2 {[%clk 0:00:20.1]} 36... Nc1 {[%clk 0:00:22.4]} 37. Rxb4 {[%clk 0:00:19.2]}
37... Rc2 {[%clk 0:00:19.6]} 38. Rd4 {[%clk 0:00:16.2]} 38... Nb3 {[%clk
0:00:19.5]} 39. Rd3 {[%clk 0:00:14.5]} 39... Nc5 {[%clk 0:00:19.9]} 40. Rd2
{[%clk 0:00:15]} 40... Rc4 {[%clk 0:00:19.7]} 41. Bg3 {[%clk 0:00:10.7]} 41...
Ne6 {[%clk 0:00:19.5]} 42. Be5 {[%clk 0:00:10.3]} 42... Rc5 {[%clk 0:00:15.5]}
43. Bxf6 {[%clk 0:00:10]} 43... gxf6 {[%clk 0:00:16.4]} 44. Kf2 {[%clk
0:00:10.3]} 44... Kf8 {[%clk 0:00:16.8]} 45. Ng3 {[%clk 0:00:10.6]} 45... Ng7
{[%clk 0:00:15.3]} 46. Ne2 {[%clk 0:00:10.3]} 46... Ke7 {[%clk 0:00:15.3]} 47.
g4 {[%clk 0:00:10.9]} 47... Kd6 {[%clk 0:00:15]} 48. Ng3 {[%clk 0:00:08.4]}
48... Rc4 {[%clk 0:00:14.8]} 49. h4 {[%clk 0:00:06.7]} 49... Ke6 {[%clk
0:00:14.1]} 50. f4 {[%clk 0:00:05.5]} 50... Ra4 {[%clk 0:00:12.6]} 51. Kf3
{[%clk 0:00:05.9]} 51... Ra3 {[%clk 0:00:11.6]} 52. Ne2 {[%clk 0:00:06.5]} 52...
Kd6 {[%clk 0:00:08.8]} 53. Nd4 {[%clk 0:00:06.6]} 53... Ra4 {[%clk 0:00:07.3]}
54. Rc2 {[%clk 0:00:06.3]} 54... Ra6 {[%clk 0:00:06.7]} 55. Rb2 {[%clk
0:00:06.3]} 55... Kc7 {[%clk 0:00:04.5]} 56. Rc2+ {[%clk 0:00:05.9]} 56... Kd7
{[%clk 0:00:05.1]} 57. h5 {[%clk 0:00:06.2]} 57... Ne6 {[%clk 0:00:05]} 58. Nf5
{[%clk 0:00:05.3]} 58... Ra3 {[%clk 0:00:05.7]} 59. Rd2 {[%clk 0:00:05.2]} 59...
Kc6 {[%clk 0:00:05.4]} 60. Kf2 {[%clk 0:00:03.9]} 60... Nc5 {[%clk 0:00:03.6]}
61. Nd4+ {[%clk 0:00:02.8]} 61... Kb6 {[%clk 0:00:03.4]} 62. Rb2+ {[%clk
0:00:03.3]} 62... Ka6 {[%clk 0:00:03]} 63. Kf3 {[%clk 0:00:03.7]} 63... Ne4
{[%clk 0:00:03.3]} 64. Nf5 {[%clk 0:00:03]} 64... Ra1 {[%clk 0:00:03.4]} 65. Rc2
{[%clk 0:00:02.8]} 65... Rf1+ {[%clk 0:00:03.7]} 66. Ke2 {[%clk 0:00:03.3]}
66... Rf2+ {[%clk 0:00:03.5]} 67. Kd3 {[%clk 0:00:03.4]} 67... Rf1 {[%clk
0:00:04.4]} 68. Kd4 {[%clk 0:00:03.5]} 68... Rd1+ {[%clk 0:00:04.8]} 0-1